Cogmind - Beta 15 @@@ ROGUE MODE // 2025.08.19 @ 02:34:47 Player: SnailSD Result: Self-destructed Performance ------------- Evolutions (2) 1000 Regions Visited (5) 1000 Robots Destroyed (48) 240 Value Destroyed (1058) 1058 Prototype IDs (23) 460 Alien Tech Used (0) 0 Bonus (178) 178 TOTAL SCORE: 3936 Bonus ------- Aligned with FarCom 300 Friendly Fire -122 Cogmind --------- Core Integrity 261/550 Matter 300/300 Energy 100/100 System Corruption 0% Temperature Cool (0) Movement Walking (260) Ox2 Location -8/Materials Parts ------- > --- POWER (1) -------- (None) > --- PROPULSION (4) --- Aluminum Leg > --- UTILITY (4) ------ Large Storage Unit > --- WEAPON (2) ------- Beam Rifle > --- INVENTORY (15) --- Deuterium Engine Aluminum Leg Aluminum Leg Compact Wheel Scrap Suit Improved Heat Sink Large Storage Unit Improved Terrain Scanner Hacking Suite Hacking Suite Skeleton Box Grenade Launcher Peak State ------------ > --- POWER ------------ Light Nuclear Core > --- PROPULSION ------- Aluminum Leg Aluminum Leg Carbon-fiber Leg Carbon-fiber Leg > --- UTILITY ---------- Large Storage Unit > --- WEAPON ----------- Particle Gun Light Assault Rifle > --- INVENTORY -------- Aluminum Leg Aluminum Leg Compact Wheel Scrap Suit Improved Heat Sink Large Storage Unit Improved Terrain Scanner Hacking Suite Hacking Suite Skeleton Box Small Laser Small Laser Grenade Launcher [Rating: 18] Favorites ----------- Power Light Ion Engine Engine Light Ion Engine Power Core Light Nuclear Core Propulsion Light Treads Treads Light Treads Leg Aluminum Leg Wheel Compact Wheel Utility Large Storage Unit Device Seismic Detector Storage Large Storage Unit Weapon Light Assault Rifle Energy Gun Medium Laser Ballistic Gun Light Assault Rifle Launcher Grenade Launcher Build | -11 -10 -10 -10 -9 -8 ------- Run | Yrd Mat Min Exi Min Mat Slots Evolved 4 | . . . . . 4 Power . | . . . . . . Propulsion 2 | . . . . . 2 Utility 2 | . . . . . 2 Weapon . | . . . . . . Parts Attached 29 | 7 4 7 1 . 10 Power 4 | 1 2 1 . . . Engine 3 | 1 2 . . . . Core 1 | . . 1 . . . Reactor . | . . . . . . Propulsion 13 | 2 1 3 1 . 6 Treads 4 | 2 1 . . . 1 Leg 7 | . . 2 . . 5 Wheel 2 | . . 1 1 . . Hover . | . . . . . . Flight . | . . . . . . Utility 3 | 2 1 . . . . Device 1 | 1 . . . . . Storage 2 | 1 1 . . . . Processor . | . . . . . . Hackware . | . . . . . . Protection . | . . . . . . Artifact . | . . . . . . Weapon 9 | 2 . 3 . . 4 Energy Gun 5 | 1 . . . . 4 Energy Cannon . | . . . . . . Ballistic Gun 3 | 1 . 2 . . . Ballistic Cannon . | . . . . . . Launcher 1 | . . 1 . . . Special Weapon . | . . . . . . Impact Weapon . | . . . . . . Slashing Weapon . | . . . . . . Piercing Weapon . | . . . . . . Special Melee Weapon . | . . . . . . Unidentified Prototypes . | . . . . . . Parts Lost 19 | . 3 4 . . 12 Power 4 | . 2 1 . . 1 Propulsion 8 | . 1 2 . . 5 Utility 1 | . . . . . 1 Weapon 6 | . . 1 . . 5 Highest Loss Streak 10 | . 2 2 . . 10 To Critical Strikes . | . . . . . . Average Backups 12 | 5 13 13 13 14 12 Power . | . . . . . . Propulsion 3 | 2 4 3 3 3 2 Utility 4 | . 3 5 6 6 6 Weapon 4 | 1 5 4 4 4 2 Tool/Special . | . . . . . . Unused Backups 12 | . . 2 . . 10 Power 1 | . . . . . 1 Propulsion 1 | . . . . . 1 Utility 7 | . . . . . 7 Weapon 2 | . . 2 . . . Tool/Special 1 | . . . . . 1 Average Slot Usage (%) 96 | . 99 97 100 100 64 Engine 7 | . 13 3 . . . Core 5 | . . 8 14 14 6 Treads 14 | . 28 4 . . 1 Leg 12 | . . 17 27 14 28 Wheel 1 | . . 4 . 14 . Device 12 | . 14 14 14 14 2 Storage 13 | . 14 14 14 14 9 Energy Gun 7 | . 14 . . . 8 Ballistic Gun 19 | . 14 26 28 28 8 Peak Build Rating 18 | 8 9 11 12 12 18 Average Rating 9 | 5 8 10 11 12 14 On Entrance 8 | . 8 9 11 12 12 Naked Turns . | . . . . . . Heaviest Build 29 | 14 29 28 28 28 29 Greatest Support 50 | 40 40 20 20 16 50 Greatest Overweight (x) 4 | 4 . 1 1 1 2 Average Overweight (x) . | . . 1 1 1 . Largest Inventory Capacity 15 | 8 15 15 15 15 15 Average Capacity 14 | 7 14 15 15 15 15 Most Carried 15 | 8 14 15 15 15 15 Average Carried 13 | 5 13 14 14 15 13 Final Capacity 15 | 8 15 15 15 15 15 Final Carried 15 | 8 14 14 15 15 13 Class Distribution -------------------- 56% | Mutant 43% | Scavenger-Mutant Dominant Class ---------------- Mutant | -10/Materials Scavenger-Mutant | -10/Mines Scavenger-Mutant | -10/Exiles Scavenger-Mutant | -9/Mines Scavenger-Mutant | -8/Materials Resources | -11 -10 -10 -10 -9 -8 ----------- Run | Yrd Mat Min Exi Min Mat Matter Collected 658 | 266 122 116 . . 154 Remotely . | . . . . . . Salvage Created 1483 | 199 587 194 . . 503 Parts 95 | 13 46 15 . . 21 Haulers Intercepted 2 | . 2 . . . . Recyclers Shooed 1 | . . 1 . . . Parts Field Recycled . | . . . . . . Retrieved Matter . | . . . . . . Parts Self-Destructed . | . . . . . . Prevented . | . . . . . . Kills | -11 -10 -10 -10 -9 -8 ------- Run | Yrd Mat Min Exi Min Mat Combat Hostiles Destroyed 30 | . 12 8 . . 10 Guns 23 | . 12 6 . . 5 AOE 6 | . . 2 . . 4 Classes Destroyed 13 | 2 7 . . . 4 Worker 2 | . 2 . . . . Builder 1 | . 1 . . . . Tunneler 4 | 4 . . . . . Hauler 2 | . 2 . . . . Recycler 2 | 1 . 1 . . . Operator 4 | . 3 . . . 1 Watcher 2 | . 2 . . . . Swarmer 12 | . 6 6 . . . Grunt 13 | . 6 2 . . 5 Brawler 1 | . . . . . 1 Duelist 1 | . . . . . 1 Sentry 2 | . . . . . 2 Hunter 1 | . . . . . 1 Thug 1 | . . . . . 1 Best Kill Streak 5 | 2 3 3 . . 5 Combat Bots Only 5 | . 3 2 . . 5 Max Kills in Single Turn 3 | 1 1 2 . . 3 Gunslinging 1 | . . 1 . . . Exploded 2 | . . 2 . . 2 Melee . | . . . . . . Uniques/NPCs Destroyed . | . . . . . . Combat | -11 -10 -10 -10 -9 -8 -------- Run | Yrd Mat Min Exi Min Mat Hostile Shots Fired 241 | . 84 55 . . 102 Missed 54 | . 18 14 . . 22 Hits 187 | . 66 41 . . 80 Projectile 187 | . 66 41 . . 80 Critical Strikes 4 | . . . . . 4 Damage Taken 2346 | . 626 483 . . 1237 Core 467 | . 85 93 . . 289 Absorbed by Shields . | . . . . . . Core Remaining (%) 64 | 100 . . . 28 . Volleys Fired 159 | 19 77 24 . . 39 Largest 2 | 2 2 2 . . 2 Hottest 105 | 70 70 70 . . 105 Shots Fired 291 | 25 153 47 . . 66 Gun 286 | 25 153 45 . . 63 Cannon . | . . . . . . Launcher 5 | . . 2 . . 3 Special . | . . . . . . Kinetic 150 | 6 77 43 . . 24 Thermal 136 | 19 76 2 . . 39 Explosive 5 | . . 2 . . 3 Electromagnetic . | . . . . . . Robot Hit Streak 11 | 5 10 5 . . 11 Robot Miss Streak 5 | 3 5 3 . . 3 Penetration Max . | . . . . . . Secondary Targets 4 | . 2 2 . . . Max Gunslinging Chain 1 | . 1 1 . . . Shots Hit Robots 173 | 12 87 27 . . 47 Core Hits 89 | 7 41 17 . . 24 Critical Kills 1 | . . 1 . . . Critical Parts Destroyed . | . . . . . . Critical Strikes 5 | 1 3 1 . . . Burn 4 | 1 3 . . . . Destroy 1 | . . 1 . . . Melee Attacks . | . . . . . . Impact . | . . . . . . Slashing . | . . . . . . Piercing . | . . . . . . Sneak Attacks . | . . . . . . Combat Hostiles . | . . . . . . Follow-up Attacks . | . . . . . . Damage Inflicted 2136 | 138 892 283 . . 823 Guns 1813 | 138 892 207 . . 576 Cannons . | . . . . . . Explosions 323 | . . 76 . . 247 Melee . | . . . . . . Ramming . | . . . . . . Kinetic 716 | 27 344 207 . . 138 Thermal 1097 | 111 548 . . . 438 Explosive 323 | . . 76 . . 247 Electromagnetic . | . . . . . . Impact . | . . . . . . Slashing . | . . . . . . Piercing . | . . . . . . Highest Corruption . | . . . . . . Average Corruption . | . . . . . . Corruption Purged . | . . . . . . Corruption Blocked . | . . . . . . Overload Shots . | . . . . . . Overflow Damage . | . . . . . . Projectiles . | . . . . . . Explosions . | . . . . . . Melee . | . . . . . . Knockbacks . | . . . . . . Impact . | . . . . . . Kinetic . | . . . . . . Secondary . | . . . . . . Self-Inflicted Damage 84 | . . 31 . . 53 Shots 3 | . . 1 . . 2 Rammed . | . . . . . . Targets Rammed . | . . . . . . Kicked . | . . . . . . Crushed . | . . . . . . Highest Temperature 362 | 60 199 85 . . 362 Average Temperature 63 | 26 47 37 . . 123 Received Heat Transfer 882 | . 165 141 . . 576 Siege Activations . | . . . . . . Martial Activations . | . . . . . . Shielding Activations . | . . . . . . Robots Disrupted . | . . . . . . Combat Hostiles . | . . . . . . Robots Corrupted . | . . . . . . Combat Hostiles . | . . . . . . Parts Fried . | . . . . . . Impact Corruptions . | . . . . . . Robots Melted 1 | . . . . . 1 Combat Hostiles 1 | . . . . . 1 Parts Melted 5 | 2 3 . . . . Heat Transferred 3236 | 407 1850 . . . 979 Parts Sabotaged . | . . . . . . Parts Stolen . | . . . . . . Parts Stripped . | . . . . . . Power Chain Reactions . | . . . . . . Alert | -11 -10 -10 -10 -9 -8 ------- Run | Yrd Mat Min Exi Min Mat Maximum Alert Level . | . . . . . . Low Security (%) 100 | 100 100 100 . 100 100 Level 1 . | . . . . . . Level 2 . | . . . . . . Level 3 . | . . . . . . Level 4 . | . . . . . . Level 5 . | . . . . . . High Security . | . . . . . . Max Security . | . . . . . . Peak Influence 137 | 10 130 103 . . 137 Initial . | . . . . . . Average 32 | 1 30 36 . . 79 Influence Increases 1015 | 25 430 253 . . 307 Destroy 0b10 Robot/C 600 | . 240 160 . . 200 Destroy 0b10 Robot/NC 85 | 25 50 5 . . 5 Destroy Leader 148 | . 68 30 . . 50 Allied During Kill 1 | . . . . . 1 Successful Hack 27 | . 27 . . . . Disable Machine 45 | . . . . . 45 Destroy Structure 19 | . . 13 . . 6 Partial Spotted 15 | . 15 . . . . Lose Combat Pursuer 75 | . 30 45 . . . Influence Decreases 933 | 25 430 243 10 . 225 Entered New Map 10 | . . . 10 . . Time Decay 763 | 25 405 223 . . 110 Lost Part 160 | . 25 20 . . 115 Squads Dispatched 8 | . 3 . . . 5 Investigation . | . . . . . . Extermination . | . . . . . . Reinforcement 5 | . 3 . . . 2 Assault . | . . . . . . Garrison 3 | . . . . . 3 Intercept . | . . . . . . Searches Triggered . | . . . . . . Construction Impeded . | . . . . . . Haulers Reinforced . | . . . . . . Active Scanning Responses . | . . . . . . Cargo Convoy Interrupts . | . . . . . . Stealth | -11 -10 -10 -10 -9 -8 --------- Run | Yrd Mat Min Exi Min Mat Distress Signals 4 | . 2 . . . 2 Communications Jammed . | . . . . . . Distress Signals . | . . . . . . Times Spotted 58 | . 30 11 . . 17 Peak Tracking Total 7 | . 6 4 . . 7 Tactical Retreats 3 | . 1 2 . . . Traps | -11 -10 -10 -10 -9 -8 ------- Run | Yrd Mat Min Exi Min Mat Traps Triggered . | . . . . . . Indirectly . | . . . . . . Trap Hack Attempts . | . . . . . . Triggered . | . . . . . . Disarmed . | . . . . . . Reprogrammed . | . . . . . . Reused . | . . . . . . Traps Extracted . | . . . . . . Installed . | . . . . . . Triggered . | . . . . . . Machines | -11 -10 -10 -10 -9 -8 ---------- Run | Yrd Mat Min Exi Min Mat Machines Disabled 3 | . . . . . 3 Max in Single Turn 1 | . . . . . 1 Machines Repaired . | . . . . . . Machines Dismantled . | . . . . . . Machines Sabotaged . | . . . . . . Overloaded Fab Kills . | . . . . . . Hacking | -11 -10 -10 -10 -9 -8 --------- Run | Yrd Mat Min Exi Min Mat Machines Accessed 9 | . 5 1 3 . . Terminals 4 | . 4 . . . . Fabricators . | . . . . . . Repair Stations . | . . . . . . Recycling Units 1 | . 1 . . . . Scanalyzers . | . . . . . . Garrison Access . | . . . . . . Total Hacks 34 | . 19 1 14 . . Successful 23 | . 8 1 14 . . Failed 10 | . 10 . . . . Catastrophic 2 | . 2 . . . . Database Lockouts 1 | . 1 . . . . Manual 18 | . 17 . 1 . . Terminals 17 | . 17 . . . . Fabricators . | . . . . . . Repair Stations . | . . . . . . Recycling Units 2 | . 2 . . . . Scanalyzers . | . . . . . . Garrison Access . | . . . . . . Terminal Hacks 21 | . 6 1 14 . . Record 13 | . . . 13 . . Robot Schematic 2 | . 2 . . . . Robot Analysis 2 | . 2 . . . . Open Door 1 | . . 1 . . . Scanalyzer Index 1 | . 1 . . . . Hauler Manifests 1 | . 1 . . . . Proto ID Catalog 1 | . . . 1 . . Fabricator Hacks . | . . . . . . Repair Station Hacks . | . . . . . . Recycling Unit Hacks . | . . . . . . Scanalyzer . | . . . . . . Garrison Access Hacks . | . . . . . . Unauthorized Hacks 1 | . 1 . . . . Terminals 1 | . 1 . . . . Operators 1 | . 1 . . . . Fabricators . | . . . . . . Repair Stations . | . . . . . . Recycling Units . | . . . . . . Scanalyzers . | . . . . . . Garrison Access . | . . . . . . Data Cores Recovered . | . . . . . . Used . | . . . . . . Hacking Detections 4 | . 4 . . . . Full Trace Events 1 | . 1 . . . . Feedback Events . | . . . . . . Feedback Blocked . | . . . . . . Robot Schematics Acquired 2 | . 2 . . . . Robots Built . | . . . . . . Authchips . | . . . . . . Time . | . . . . . . Total Robot Build Rating . | . . . . . . Part Schematics Acquired . | . . . . . . Parts Built . | . . . . . . Authchips . | . . . . . . Time . | . . . . . . Total Part Build Rating . | . . . . . . Parts Repaired . | . . . . . . Time . | . . . . . . Parts Recycled . | . . . . . . Recycled Matter . | . . . . . . Retrieved Matter . | . . . . . . Retrieved Components . | . . . . . . Parts Scanalyzed . | . . . . . . Part Schematics Acquired . | . . . . . . Parts Damaged . | . . . . . . Bothacking | -11 -10 -10 -10 -9 -8 ------------ Run | Yrd Mat Min Exi Min Mat Used RIF Installer . | . . . . . . Robots Hacked . | . . . . . . Non-combat . | . . . . . . Combat . | . . . . . . Robot Hacks Applied . | . . . . . . Relay Couplers Released . | . . . . . . Fabnet Peak Effective % . | . . . . . . Robots Rewired . | . . . . . . Allies Hacked . | . . . . . . Hacks Repelled . | . . . . . . Allies | -11 -10 -10 -10 -9 -8 -------- Run | Yrd Mat Min Exi Min Mat Total Allies 1 | . . . . 1 . Largest Group 1 | . . . . 1 1 Highest-Rated Group 31 | . . . . 31 31 Highest-Rated Ally 31 | . . . . 31 31 Total Orders . | . . . . . . Ally Attacks 14 | . . . . . 14 Total Damage 207 | . . . . . 207 Kills . | . . . . . . Allies Corrupted . | . . . . . . Allies Melted . | . . . . . . Intel | -11 -10 -10 -10 -9 -8 ------- Run | Yrd Mat Min Exi Min Mat Active Infowar (turns) 3022 | 46 1600 547 714 66 49 Seismic 3022 | 46 1600 547 714 66 49 Robot Analysis Total 2 | . 2 . . . . Derelict Logs Recovered . | . . . . . . Drone Launches . | . . . . . . Drone Recoveries . | . . . . . . Exploration | -11 -10 -10 -10 -9 -8 ------------- Run | Yrd Mat Min Exi Min Mat Turns Passed 3402 | 220 1600 547 714 66 255 Spaces Moved 1703 | 101 836 245 374 55 92 Core 18 | 18 . . . . . Treads 921 | 83 836 2 . . . Legs 602 | . . 138 372 . 92 Wheels 162 | . . 105 2 55 . Hover . | . . . . . . Flight . | . . . . . . Fastest Speed 50 | 50 160 115 115 115 120 Average Speed 163 | 158 160 158 189 115 131 Slowest Speed 260 | 250 160 240 190 115 260 Overloaded Moves . | . . . . . . Propulsion Burnouts . | . . . . . . Robots Hopped . | . . . . . . Potential Cave-ins . | . . . . . . Cave-ins Triggered . | . . . . . . Exploration Rate (%) 40 | 6 85 40 82 17 15 Regions Visited 5 Branch Regions 3 Pre-discovered Areas 1 | . . . 1 . . Known Exits Taken . | . . . . . . Unknown Exits Taken 5 | 1 1 1 1 1 . Scrap Searched 1 | . . 1 . . . Spaces Dug . | . . . . . . Terrain Destroyed 20 | . . 13 . . 7 Melee . | . . . . . . Projectile . | . . . . . . AOE 20 | . . 13 . . 7 Terrain Rammed . | . . . . . . Walls Destroyed . | . . . . . . Machines Disabled . | . . . . . . Actions | -11 -10 -10 -10 -9 -8 --------- Run | Yrd Mat Min Exi Min Mat Total 2062 | 134 962 369 377 57 163 Wait 133 | . 36 82 . 3 12 Move 1698 | 100 835 244 373 54 92 Hop . | . . . . . . Pick Up 29 | 8 9 7 1 . 4 Fast Attach 10 | 7 . . . . 3 Attach 14 | . 3 5 . . 6 Detach 2 | . . 1 . . 1 Swap 9 | . 1 2 3 . 3 Drop 8 | . 1 4 . . 3 Fire 159 | 19 77 24 . . 39 Melee . | . . . . . . Ram . | . . . . . . Kick . | . . . . . . Crush . | . . . . . . Escape Stasis . | . . . . . . Rewire . | . . . . . . Trap . | . . . . . . Miscellaneous . | . . . . . . Route ------- -11/Scrapyard -10/Materials (discovered 5 exits: [*Mat x3] / *Min / [*Sub]) -10/Mines (discovered 2 exits: *Exi / [*Sub]) -10/Exiles (discovered 2 exits: [*Min x2]) -9/Mines (discovered 2 exits: [*Mat x2]) -8/Materials History --------- Turn | Location | Event 41 | -11/Scrapyard | Discovered new exit (range 14) 221 | -11/Scrapyard | Entered Materials 315 | -10/Materials | Build established: Mutant 474 | -10/Materials | Discovered new exit (range 10) 729 | -10/Materials | Discovered new exit (range 7) 1090 | -10/Materials | Discovered new exit (range 10) 1155 | -10/Materials | Discovered new exit (range 6) 1570 | -10/Materials | Discovered new exit (range 10) 1613 | -10/Materials | Central database locked down 1821 | -10/Materials | Entered Mines 1836 | -10/Mines | Core integrity fell below 50% 2013 | -10/Mines | Found a Scrap Suit stashed away for nefarious purposes 2020 | -10/Mines | Found Scrap Suit 2094 | -10/Mines | Met a Derelict who couldn't figure out how to use a Trap Extractor 2126 | -10/Mines | Discovered new exit (range 9) 2148 | -10/Mines | Assembled infested the area 2323 | -10/Mines | Build established: Scavenger-Mutant 2359 | -10/Mines | Deemed a non-threat by the Exiles lab entrance 2361 | -10/Mines | Discovered new exit (range 5) 2368 | -10/Mines | Entered Exiles 2393 | -10/Exiles | Discovered new exit (range 15) 2433 | -10/Exiles | Met 8R-AWN 2460 | -10/Exiles | Met EX-HEX 2538 | -10/Exiles | Met EX-DEC 2551 | -10/Exiles | Learned location of Zion (-6) 2583 | -10/Exiles | Met EX-BIN 2629 | -10/Exiles | Aligned with FarCom system 2631 | -10/Exiles | Given EX-Vault access code 2678 | -10/Exiles | Opened EX-Vault 2690 | -10/Exiles | Found Skeleton Box 2725 | -10/Exiles | Warned to stay clear of 0b10 Research branches 2868 | -10/Exiles | Visited The Gauntlet 3057 | -10/Exiles | Discovered new exit (range 11) 3082 | -10/Exiles | Left Exiles lab with Skeleton Box 3082 | -10/Exiles | Entered Mines 3085 | -9/Mines | Received a Mining Laser from a helpful Derelict 3100 | -9/Mines | Discovered new exit (range 10) 3114 | -9/Mines | Discovered new exit (range 4) 3144 | -9/Mines | Met a Derelict bent on vengeance 3148 | -9/Mines | Entered Materials 3148 | -8/Materials | Accompanied by 1 ally 3148 | -8/Materials | Evolved 4 slots: Propulsion x2, Utility x2 3193 | -8/Materials | Garrison activated, responded to threat 3400 | -8/Materials | Core integrity fell below 50% 3403 | -8/Materials | Self-destructed Last Messages --------------- 03366_ Lgt. Treads destroyed. 03366_ Y-45 Defender destroyed. 03367_ Acquired 23 matter. 03370_ R-06 Scavenger collects Lgt. Nuclear Core. 03374_ R-06 Scavenger collects Heat Sink. 03376_ Aluminum Leg destroyed. 03376_ Acquired Aluminum Leg. 03377_ R-06 Scavenger collects Particle Gun. 03382_ Acquired Beam Rifle. 03389_ G-47 Trooper destroyed. 03392_ Acquired 20 matter. 03393_ Y-45 Defender emerges from the garrison. 03393_ R-06 Scavenger collects Imp. Heat Sink. 03394_ Sml. Laser destroyed. 03397_ R-06 Scavenger collects Aluminum Leg. 03401_ R-06 Scavenger collects Lgt. Armor Plating. 03402_ K-01 Serf collects debris. Map ----- +----------------------------------------------------+ | | | | | | | | | | | | | | | | | | | | | | | | | ?????????????????????????????????????????????????? | | ????????????###########??????????????????????????? | | ????????????# [ =#??????????????????????????? | | ############# "T" = #??????????????????????????? | | + !*#??????????????????????????? | | ###### ## #??????????????????????????? | | #????# ## """ """ #??????????????????????????? | | #????# ## """ """ #??????????????????????????? | | # ??# ## """ """ #??????????????????????????? | | # # ## #???######?????????????????? | | # # + ######+######### #?????????????????? | | # # # #???# # #?????????????????? | | # # # ##### # #?????????????????? | | + # + """" @# #?????????????????? | | # # ####### """" r%k #?????????????????? | | # ###??????###= " %%# #?????????????????? | | # #?????#### # % # #?????????????????? | | # ####### # # # #?????????????????? | | # % # #?????????????????? | | # % Y ######?????????????????? | | # """ "" Y""" #??????????????????????? | | # """ " " % " G" #??????????????????????? | | # """ """ """ """ #??????????????????????? | | # #??????????????????????? | | #??????????????????????? | | ???????w??????????????? | | ?????????????????????? | | w ?????????????????????? | | ##########+######????????????????????? | | # #????????? ??????????????????????????? | | # #????????? ??????????????????????????? | | # #????????????????????????????????????? | | + #????????????????????????????????????? | | ?? ? ??????????????????????????????????????? | | ?????????????????????????????????????????????????? | | ?????????????????????????????????????????????????? | | ?????????????????????????????????????????????????? | | ?????????????????????????????????????????????????? | +----------------------------------------------------+ Best States ------------- Heat Dissipation 31 Energy Generation 14 Energy Capacity 250 Matter Stores 300 Matter Capacity 300 Sight Range 16 Terrain Scan Density 10 Evasion (%) 55 Recoil Reduction 2 Item Schematics ----------------- None Robot Schematics ------------------ G-34 Mercenary | -10/Materials | Hacked S-10 Pest | -10/Materials | Hacked Fabricated ------------ Nothing Repaired ---------- Nothing Alien Tech Used ----------------- None Achievements -------------- None Challenges ------------ None Game ------ Seed MissileSalvagingAutocannon Manual? 0 Play Time 00:23:34 Cumulative 27.9 hours Start 2025.08.19 @ 02:12:58 End 2025.08.19 @ 02:34:47 Sessions 1 Manual Loads 0 Difficulty Rogue Special Mode None Game No. 49 Rogue 49 Adventurer 0 Explorer 0 Win Type - Total 0 Types 0/0/0/0/0/0/0/0/0/0 Lore% 32 Gallery% 30 Achievement% 28 Wizard Run 0 Options --------- Layout 1 ASCII 0 Keyboard 0 Movement Numpad Keybinds 0 Fullscreen 1 Font 24/Smallcaps Map View 50x35 Zoom Use 0% Tactical HUD 1 Map Filters NONE Filters NONE Steam 1 RUN: fde6cb87-064f-49d6-843e-aa9c333801ab